fUSD/lending_fUSD_20250220
["ID","MTS","AMOUNT","RATE_DAILY","PERIOD"]
[353782825,1740046239073,-550.38581448,0.00010958,2]
[353782826,1740046239082,-502.43890751,0.00010958,2]
[353782827,1740046239092,-500.0,0.00010958,2]
[353782828,1740046239102,-500.0,0.00010958,2]
[353782829,1740046239112,-500.0,0.00010958,2]
[353782830,1740046239122,-500.0,0.00010958,2]
[353782831,1740046239131,-500.0,0.00010958,2]
[353782832,1740046239142,-500.0,0.00010958,2]
[353782833,1740046239152,-501.93877457,0.00010958,2]
[353782834,1740046239162,-509.29725218,0.00010958,2]
[353782835,1740046239172,-612.48423098,0.00010958,2]
[353782836,1740046239182,-156.374567,0.00010958,2]
[353782837,1740046239192,-500.0,0.00010958,2]
[353782838,1740046239202,-509.5030006,0.00010958,2]
[353782839,1740046239211,-500.0,0.00010958,2]
[353782840,1740046239222,-500.0,0.00010958,2]
[353782841,1740046239243,-500.0,0.00010958,2]
[353782842,1740046239252,-500.0,0.00010958,2]
[353782843,1740046239263,-500.0,0.00010958,2]
[353782844,1740046239274,-500.0,0.00010958,2]
[353782845,1740046239284,-500.0,0.00010958,2]
[353782846,1740046239294,-500.0,0.00010958,2]
[353782847,1740046239305,-500.0,0.00010958,2]
[353782848,1740046239316,-502.79140444,0.00010958,2]
[353782849,1740046239326,-500.0,0.00010958,2]
[353782850,1740046239337,-500.0,0.00010958,2]
[353782851,1740046239347,-500.0,0.00010958,2]
[353782852,1740046239359,-500.0,0.00010958,2]
[353782853,1740046239369,-500.0,0.00010958,2]
[353782854,1740046239379,-500.0,0.00010958,2]
[353782855,1740046239390,-503.30994032,0.00010958,2]
[353782856,1740046239400,-500.75101853,0.00010958,2]
[353782857,1740046239410,-500.0,0.00010958,2]
[353782858,1740046239420,-500.0,0.00010958,2]
[353782859,1740046239431,-500.0,0.00010958,2]
[353782860,1740046239441,-500.0,0.00010958,2]
[353782861,1740046239451,-500.0,0.00010958,2]
[353782862,1740046239462,-156.97182497,0.00010958,2]
[353782863,1740046239474,-500.0,0.00010958,2]
[353782864,1740046239484,-500.0,0.00010958,2]
[353782865,1740046239493,-500.0,0.00010958,2]
[353782866,1740046239503,-500.0,0.00010958,2]
[353782867,1740046239514,-500.0,0.00010958,2]
[353782868,1740046239523,-500.0,0.00010958,2]
[353782869,1740046239534,-500.0,0.00010958,2]
[353782870,1740046239545,-420.78725709,0.00010958,2]
[353782871,1740046239555,-500.0,0.00010958,2]
[353782872,1740046239566,-505.42996848,0.00010958,2]
[353782873,1740046239576,-500.0,0.00010958,2]
[353782874,1740046239585,-500.0,0.00010958,2]
[353782875,1740046239595,-500.0,0.00010958,2]
[353782876,1740046239605,-294.30246093,0.00010958,2]
[353782877,1740046239615,-500.0,0.00010958,2]
[353782878,1740046239625,-500.0,0.00010958,2]
[353782879,1740046239635,-500.0,0.00010958,2]
[353782880,1740046239644,-504.95073803,0.00010958,2]
[353782881,1740046239654,-500.0,0.00010958,2]
[353782882,1740046239664,-500.0,0.00010958,2]
[353782883,1740046239673,-500.0,0.00010958,2]
[353782884,1740046239683,-500.0,0.00010958,2]
[353782885,1740046239692,-500.0,0.00010958,2]
[353782886,1740046239702,-500.0,0.00010958,2]
[353782887,1740046239711,-500.0,0.00010958,2]
[353782888,1740046239721,-500.0,0.00010958,2]
[353782889,1740046239731,-504.17132136,0.00010958,2]
[353782890,1740046239741,-500.0,0.00010958,2]
[353782891,1740046239750,-500.0,0.00010958,2]
[353782892,1740046239760,-500.0,0.00010958,2]
[353782893,1740046239770,-500.0,0.00010958,2]
[353782894,1740046239779,-500.0,0.00010958,2]
[353782895,1740046239789,-500.0,0.00010958,2]
[353782896,1740046239799,-502.44837668,0.00010958,2]
[353782897,1740046239809,-502.18545267,0.00010958,2]
[353782898,1740046239819,-500.0,0.00010958,2]
[353782899,1740046239828,-505.79433055,0.00010958,2]
[353782900,1740046239838,-500.0,0.00010958,2]
[353782901,1740046239848,-500.0,0.00010958,2]
[353782902,1740046239857,-500.0,0.00010958,2]
[353782903,1740046239867,-500.0,0.00010958,2]
[353782904,1740046239877,-500.0,0.00010958,2]
[353782905,1740046239887,-500.0,0.00010958,2]
[353782906,1740046239896,-500.0,0.00010958,2]
[353782907,1740046239906,-500.0,0.00010958,2]
[353782908,1740046239915,-500.0,0.00010958,2]
[353782909,1740046239926,-500.0,0.00010958,2]
[353782910,1740046239935,-500.0,0.00010958,2]
[353782911,1740046239945,-500.0,0.00010958,2]
[353782912,1740046239955,-500.0,0.00010958,2]
[353782913,1740046239965,-500.0,0.00010958,2]
[353782914,1740046239976,-500.0,0.00010958,2]
[353782915,1740046239986,-500.0,0.00010958,2]
[353782916,1740046239995,-500.0,0.00010958,2]
[353782917,1740046240005,-500.0,0.00010958,2]
[353782918,1740046240015,-500.0,0.00010958,2]
[353782919,1740046240024,-500.0,0.00010958,2]
[353782920,1740046240033,-500.0,0.00010958,2]
[353782921,1740046240042,-504.34912371,0.00010958,2]
[353782922,1740046240051,-500.0,0.00010958,2]
[353782923,1740046240061,-500.0,0.00010958,2]
[353782924,1740046240070,-500.0,0.00010958,2]
[353782925,1740046240081,-215.8591761,0.00010958,2]
[353782926,1740046240091,-500.0,0.00010958,2]
[353782927,1740046240101,-500.0,0.00010958,2]
[353782928,1740046240110,-500.0,0.00010958,2]
[353782929,1740046240120,-500.0,0.00010958,2]
[353782930,1740046240130,-500.0,0.00010958,2]
[353782931,1740046240139,-500.0,0.00010958,2]
[353782932,1740046240149,-504.28522176,0.00010958,2]
[353782933,1740046240158,-1000.0,0.00010958,2]
[353782934,1740046240168,-500.0,0.00010958,2]
[353782935,1740046240177,-500.0,0.00010958,2]
[353782936,1740046240186,-500.0,0.00010958,2]
[353782937,1740046240196,-500.0,0.00010958,2]
[353782938,1740046240206,-500.0,0.00010958,2]
[353782939,1740046240215,-500.0,0.00010958,2]
[353782940,1740046240225,-500.0,0.00010958,2]
[353782941,1740046240235,-500.0,0.00010958,2]
[353782942,1740046240245,-500.0,0.00010958,2]
[353782943,1740046240255,-500.0,0.00010958,2]
[353782944,1740046240264,-500.0,0.00010958,2]
[353782945,1740046240274,-502.46229094,0.00010958,2]
[353782946,1740046240283,-500.0,0.00010958,2]
[353782947,1740046240292,-500.0,0.00010958,2]
[353782948,1740046240302,-500.0,0.00010958,2]
[353782949,1740046240312,-500.0,0.00010958,2]
[353782950,1740046240321,-500.0,0.00010958,2]
[353782951,1740046240331,-500.0,0.00010958,2]
[353782952,1740046240340,-503.93917112,0.00010958,2]
[353782953,1740046240349,-500.0,0.00010958,2]
[353782954,1740046240359,-500.0,0.00010958,2]
[353782955,1740046240368,-500.74577536,0.00010958,2]
[353782956,1740046240377,-277.376211,0.00010958,2]
[353782958,1740046240386,-500.0,0.00010958,2]
[353782960,1740046240396,-500.0,0.00010958,2]
[353782962,1740046240405,-593.75748551,0.00010958,2]
[353782964,1740046240414,-500.0,0.00010958,2]
[353782965,1740046240423,-501.57356744,0.00010958,2]
[353782967,1740046240432,-500.0,0.00010958,2]
[353782969,1740046240442,-500.0,0.00010958,2]
[353782971,1740046240451,-500.0,0.00010958,2]
[353782973,1740046240461,-501.28803772,0.00010958,2]
[353782975,1740046240474,-194.00549,0.00010958,2]
[353782977,1740046240483,-500.0,0.00010958,2]
[353782978,1740046240492,-511.48550029,0.00010958,2]
[353782980,1740046240501,-500.0,0.00010958,2]
[353782982,1740046240511,-500.0,0.00010958,2]
[353782984,1740046240520,-500.0,0.00010958,2]
[353782986,1740046240529,-500.0,0.00010958,2]
[353782988,1740046240539,-500.0,0.00010958,2]
[353782989,1740046240549,-500.0,0.00010958,2]
[353782991,1740046240559,-500.0,0.00010958,2]
[353782993,1740046240569,-500.0,0.00010958,2]
[353782995,1740046240579,-500.0,0.00010958,2]
[353782997,1740046240590,-500.0,0.00010958,2]
[353782999,1740046240599,-500.0,0.00010958,2]
[353783000,1740046240608,-500.0,0.00010958,2]
[353783002,1740046240617,-500.0,0.00010958,2]
[353783004,1740046240626,-502.74512346,0.00010958,2]
[353783006,1740046240636,-1025.74,0.00010958,2]
[353783008,1740046240645,-500.0,0.00010958,2]
[353783009,1740046240655,-1025.74,0.00010958,2]
[353783011,1740046240664,-500.0,0.00010958,2]
[353783013,1740046240674,-1025.74,0.00010958,2]
[353783015,1740046240683,-1025.74,0.00010958,2]
[353783017,1740046240692,-1025.74,0.00010958,2]
[353783019,1740046240701,-500.0,0.00010958,2]
[353783021,1740046240711,-1025.74,0.00010958,2]
[353783023,1740046240721,-1025.74,0.00010958,2]
[353783024,1740046240731,-1025.74,0.00010958,2]
[353783026,1740046240740,-500.0,0.00010958,2]
[353783028,1740046240749,-1025.74,0.00010958,2]
[353783030,1740046240759,-500.0,0.00010958,2]
[353783031,1740046240768,-1025.74,0.00010958,2]
[353783033,1740046240777,-500.0,0.00010958,2]
[353783035,1740046240787,-500.0,0.00010958,2]
[353783037,1740046240796,-500.0,0.00010958,2]
[353783044,1740046240857,-500.0,0.00010958,2]
[353783046,1740046240867,-500.0,0.00010958,2]
[353783048,1740046240876,-500.0,0.00010958,2]
[353783049,1740046240885,-500.0,0.00010958,2]
[353783051,1740046240894,-500.0,0.00010958,2]
[353783053,1740046240903,-500.0,0.00010958,2]
[353783055,1740046240912,-500.0,0.00010958,2]
[353783057,1740046240921,-500.0,0.00010958,2]
[353783058,1740046240930,-500.0,0.00010958,2]
[353783060,1740046240939,-500.0,0.00010958,2]
[353783062,1740046240949,-500.0,0.00010958,2]
[353783064,1740046240958,-500.0,0.00010958,2]
[353783066,1740046240967,-500.0,0.00010958,2]
[353783068,1740046240977,-500.0,0.00010958,2]
[353783070,1740046240986,-500.0,0.00010958,2]
[353783072,1740046240995,-500.0,0.00010958,2]
[353783074,1740046241004,-158.53074189,0.00010958,2]
[353783076,1740046241013,-500.0,0.00010958,2]
[353783078,1740046241022,-500.0,0.00010958,2]
[353783080,1740046241031,-500.0,0.00010958,2]
[353783082,1740046241040,-500.0,0.00010958,2]
[353783084,1740046241049,-503.47527775,0.00010958,2]
[353783086,1740046241058,-500.60379073,0.00010958,2]
[353783088,1740046241067,-500.0,0.00010958,2]
[353783089,1740046241076,-501.00405922,0.00010958,2]
[353783090,1740046241086,-500.0,0.00010958,2]
[353783091,1740046241095,-500.0,0.00010958,2]
[353783092,1740046241105,-240.88818767,0.00010958,2]
[353783093,1740046241114,-500.0,0.00010958,2]
[353783094,1740046241123,-500.0,0.00010958,2]
[353783095,1740046241132,-500.0,0.00010958,2]
[353783096,1740046241142,-500.0,0.00010958,2]
[353783097,1740046241151,-500.0,0.00010958,2]
[353783098,1740046241162,-502.28577089,0.00010958,2]
[353783099,1740046241171,-500.0,0.00010958,2]
[353783100,1740046241181,-501.78630513,0.00010958,2]
[353783101,1740046241190,-500.0,0.00010958,2]
[353783102,1740046241199,-500.0,0.00010958,2]
[353783103,1740046241209,-500.0,0.00010958,2]
[353783104,1740046241219,-500.0,0.00010958,2]
[353783105,1740046241230,-500.0,0.00010958,2]
[353783106,1740046241239,-500.0,0.00010958,2]
[353783108,1740046241248,-502.99919013,0.00010958,2]
[353783109,1740046241258,-500.0,0.00010958,2]
[353783111,1740046241267,-500.0,0.00010958,2]
[353783113,1740046241275,-500.0,0.00010958,2]
[353783115,1740046241284,-520.90509087,0.00010958,2]
[353783117,1740046241293,-500.0,0.00010958,2]
[353783118,1740046241302,-500.0,0.00010958,2]
[353783120,1740046241311,-500.0,0.00010958,2]
[353783122,1740046241321,-503.05819871,0.00010958,2]
[353783124,1740046241331,-501.97097514,0.00010958,2]
[353783126,1740046241340,-500.0,0.00010958,2]
[353783128,1740046241349,-500.0,0.00010958,2]
[353783130,1740046241358,-500.0,0.00010958,2]
[353783132,1740046241367,-500.0,0.00010958,2]
[353783134,1740046241377,-511.75083619,0.00010958,2]
[353783136,1740046241386,-500.0,0.00010958,2]
[353783138,1740046241396,-500.0,0.00010958,2]
[353783140,1740046241406,-502.40301829,0.00010958,2]
[353783142,1740046241415,-500.0,0.00010958,2]
[353783144,1740046241425,-500.0,0.00010958,2]
[353783146,1740046241434,-500.0,0.00010958,2]
[353783148,1740046241443,-500.0,0.00010958,2]
[353783150,1740046241453,-500.0,0.00010958,2]
[353783152,1740046241463,-501.48305013,0.00010958,2]
[353783154,1740046241474,-500.0,0.00010958,2]
[353783156,1740046241483,-500.0,0.00010958,2]
[353783158,1740046241493,-500.0,0.00010958,2]
[353783160,1740046241502,-500.0,0.00010958,2]
[353783162,1740046241513,-501.1472613,0.00010958,2]
[353783164,1740046241522,-500.0,0.00010958,2]
[353783166,1740046241532,-500.0,0.00010958,2]
[353783168,1740046241542,-500.0,0.00010958,2]
[353783170,1740046241551,-500.0,0.00010958,2]
[353783172,1740046241561,-503.08217678,0.00010958,2]
[353783174,1740046241570,-500.0,0.00010958,2]
[353783176,1740046241580,-500.0,0.00010958,2]
[353783178,1740046241589,-500.0,0.00010958,2]
[353783180,1740046241598,-500.0,0.00010958,2]
[353783182,1740046241606,-500.0,0.00010958,2]
[353783184,1740046241614,-502.95765958,0.00010958,2]
[353783186,1740046241622,-500.0,0.00010958,2]
[353783188,1740046241630,-500.0,0.00010958,2]
[353783190,1740046241637,-487.48596333,0.00010958,2]
[353783192,1740046241645,-500.0,0.00010958,2]
[353783194,1740046241655,-500.0,0.00010958,2]
[353783195,1740046241663,-500.0,0.00010958,2]
[353783197,1740046241672,-500.0,0.00010958,2]
[353783200,1740046241682,-641.92567409,0.00010958,2]
[353783201,1740046241691,-517.42952855,0.00010958,2]
[353783203,1740046241700,-624.91903452,0.00010958,2]
[353783205,1740046241709,-500.48371989,0.00010958,2]
[353783207,1740046241718,-500.0,0.00010958,2]
[353783210,1740046241728,-500.0,0.00010958,2]
[353783211,1740046241738,-500.93035849,0.00010958,2]
[353783213,1740046241747,-175.645039,0.00010958,2]
[353783215,1740046241756,-500.81069888,0.00010958,2]
[353783218,1740046241766,-503.49451532,0.00010958,2]
[353783219,1740046241775,-500.0,0.00010958,2]
[353783221,1740046241785,-500.0,0.00010958,2]
[353783223,1740046241797,-500.0,0.00010958,2]
[353783226,1740046241807,-500.98669228,0.00010958,2]
[353783227,1740046241816,-500.0,0.00010958,2]
[353783229,1740046241825,-500.0,0.00010958,2]
[353783231,1740046241835,-504.89898605,0.00010958,2]
[353783233,1740046241844,-581.21,0.00010958,2]
[353783235,1740046241853,-500.0,0.00010958,2]
[353783237,1740046241862,-500.0,0.00010958,2]
[353783239,1740046241871,-500.0,0.00010958,2]
[353783241,1740046241880,-504.86189094,0.00010958,2]
[353783243,1740046241890,-500.0,0.00010958,2]
[353783245,1740046241899,-500.0,0.00010958,2]
[353783247,1740046241908,-500.0,0.00010958,2]
[353783249,1740046241918,-158.723038,0.00010958,2]
[353783251,1740046241927,-500.0,0.00010958,2]
[353783253,1740046241937,-500.0,0.00010958,2]
[353783255,1740046241946,-500.0,0.00010958,2]
[353783257,1740046241955,-503.91563854,0.00010958,2]
[353783259,1740046241965,-503.34958253,0.00010958,2]
[353783261,1740046241975,-500.0,0.00010958,2]
[353783263,1740046241984,-500.0,0.00010958,2]
[353783265,1740046241993,-500.0,0.00010958,2]
[353783267,1740046242002,-500.94906572,0.00010958,2]
[353783269,1740046242011,-500.0,0.00010958,2]
[353783271,1740046242020,-500.0,0.00010958,2]
[353783273,1740046242029,-501.05191286,0.00010958,2]
[353783275,1740046242038,-500.0,0.00010958,2]
[353783277,1740046242047,-500.0,0.00010958,2]
[353783279,1740046242057,-501.60970694,0.00010958,2]
[353783281,1740046242067,-500.0,0.00010958,2]
[353783283,1740046242076,-500.0,0.00010958,2]
[353783285,1740046242085,-500.0,0.00010958,2]
[353783287,1740046242094,-500.0,0.00010958,2]
[353783289,1740046242103,-500.0,0.00010958,2]
[353783290,1740046242112,-500.0,0.00010958,2]
[353783292,1740046242122,-501.32879673,0.00010958,2]
[353783294,1740046242131,-500.0,0.00010958,2]
[353783296,1740046242141,-500.0,0.00010958,2]
[353783298,1740046242150,-500.0,0.00010958,2]
[353783300,1740046242159,-500.0,0.00010958,2]
[353783302,1740046242168,-500.0,0.00010958,2]
[353783304,1740046242177,-500.0,0.00010958,2]
[353783307,1740046242187,-500.0,0.00010958,2]
[353783308,1740046242197,-500.0,0.00010958,2]
[353783310,1740046242206,-500.0,0.00010958,2]
[353783312,1740046242216,-500.0,0.00010958,2]
[353783314,1740046242226,-501.34113418,0.00010958,2]
[353783316,1740046242236,-500.0,0.00010958,2]
[353783319,1740046242247,-546.45816151,0.00010958,2]
[353783321,1740046242257,-500.0,0.00010958,2]
[353783323,1740046242266,-500.0,0.00010958,2]
[353783325,1740046242275,-500.0,0.00010958,2]
[353783327,1740046242285,-524.36197319,0.00010958,2]
[353783329,1740046242295,-500.0,0.00010958,2]
[353783331,1740046242304,-500.0,0.00010958,2]
[353783333,1740046242314,-546.84176641,0.00010958,2]
[353783335,1740046242323,-500.0,0.00010958,2]
[353783337,1740046242332,-500.0,0.00010958,2]
[353783339,1740046242341,-502.76450931,0.00010958,2]
[353783341,1740046242351,-501.14477708,0.00010958,2]
[353783343,1740046242360,-502.03493703,0.00010958,2]
[353783345,1740046242370,-500.0,0.00010958,2]
[353783347,1740046242379,-500.0,0.00010958,2]
[353783349,1740046242389,-502.2531579,0.00010958,2]
[353783351,1740046242398,-292.12677686,0.00010958,2]
[353783353,1740046242407,-500.0,0.00010958,2]
[353783355,1740046242416,-500.0,0.00010958,2]
[353783357,1740046242426,-500.0,0.00010958,2]
[353783360,1740046242435,-500.0,0.00010958,2]
[353783363,1740046242444,-500.36654869,0.00010958,2]
[353783366,1740046242453,-500.0,0.00010958,2]
[353783369,1740046242465,-500.0,0.00010958,2]
[353783372,1740046242474,-500.0,0.00010958,2]
[353783374,1740046242484,-604.22,0.00010958,2]
[353783377,1740046242493,-504.53033237,0.00010958,2]
[353783383,1740046242503,-500.67856488,0.00010958,2]
[353783386,1740046242513,-500.0,0.00010958,2]
[353783390,1740046242523,-500.0,0.00010958,2]
[353783393,1740046242532,-502.22913756,0.00010958,2]
[353783396,1740046242543,-500.0,0.00010958,2]
[353783399,1740046242553,-516.44,0.00010958,2]
[353783402,1740046242562,-500.0,0.00010958,2]
[353783405,1740046242572,-500.0,0.00010958,2]
[353783408,1740046242582,-500.0,0.00010958,2]
[353783410,1740046242591,-500.0,0.00010958,2]
[353783412,1740046242600,-500.0,0.00010958,2]
[353783414,1740046242610,-504.5156555,0.00010958,2]
[353783416,1740046242619,-500.0,0.00010958,2]
[353783418,1740046242628,-500.0,0.00010958,2]
[353783420,1740046242638,-500.0,0.00010958,2]
[353783422,1740046242647,-500.0,0.00010958,2]
[353783424,1740046242657,-500.0,0.00010958,2]
[353783426,1740046242666,-500.0,0.00010958,2]
[353783428,1740046242676,-500.9354203,0.00010958,2]
[353783430,1740046242685,-500.0,0.00010958,2]
[353783433,1740046242695,-502.42169347,0.00010958,2]
[353783434,1740046242704,-500.0,0.00010958,2]
[353783436,1740046242714,-500.0,0.00010958,2]
[353783438,1740046242723,-505.32379518,0.00010958,2]
[353783440,1740046242732,-502.3197787,0.00010958,2]
[353783442,1740046242741,-500.0,0.00010958,2]
[353783445,1740046242751,-500.33661005,0.00010958,2]
[353783447,1740046242761,-500.0,0.00010958,2]
[353783449,1740046242770,-500.0,0.00010958,2]
[353783451,1740046242780,-500.0,0.00010958,2]
[353783453,1740046242789,-500.0,0.00010958,2]
[353783455,1740046242799,-500.0,0.00010958,2]
[353783457,1740046242808,-500.0,0.00010958,2]
[353783459,1740046242818,-500.28705467,0.00010958,2]
[353783461,1740046242827,-500.0,0.00010958,2]
[353783463,1740046242837,-500.0,0.00010958,2]
[353783465,1740046242846,-500.0,0.00010958,2]
[353783467,1740046242855,-500.0,0.00010958,2]
[353783469,1740046242864,-500.0,0.00010958,2]
[353783471,1740046242874,-501.58703645,0.00010958,2]
[353783473,1740046242883,-193.36138481,0.00010958,2]
[353783475,1740046242893,-500.0,0.00010958,2]
[353783477,1740046242903,-500.0,0.00010958,2]
[353783479,1740046242913,-500.0,0.00010958,2]
[353783481,1740046242923,-500.0,0.00010958,2]
[353783483,1740046242932,-500.0,0.00010958,2]
[353783485,1740046242942,-207.95444493,0.00010958,2]
[353783487,1740046242951,-500.0,0.00010958,2]
[353783489,1740046242960,-535.85,0.00010958,2]
[353783491,1740046242970,-500.0,0.00010958,2]
[353783493,1740046242979,-500.0,0.00010958,2]
[353783495,1740046242988,-500.0,0.00010958,2]
[353783497,1740046242998,-500.0,0.00010958,2]
[353783499,1740046243007,-504.51366377,0.00010958,2]
[353783501,1740046243016,-611.48,0.00010958,2]
[353783503,1740046243025,-502.57747946,0.00010958,2]
[353783505,1740046243035,-502.14116859,0.00010958,2]
[353783507,1740046243045,-500.0,0.00010958,2]
[353783509,1740046243054,-500.0,0.00010958,2]
[353783511,1740046243063,-500.0,0.00010958,2]
[353783513,1740046243073,-500.0,0.00010958,2]
[353783515,1740046243083,-500.0,0.00010958,2]
[353783517,1740046243093,-502.0587357,0.00010958,2]
[353783519,1740046243102,-500.0,0.00010958,2]
[353783521,1740046243112,-500.47007702,0.00010958,2]
[353783523,1740046243121,-502.32154149,0.00010958,2]
[353783525,1740046243131,-500.0,0.00010958,2]
[353783527,1740046243140,-647.55164783,0.00010958,2]
[353783529,1740046243150,-500.0,0.00010958,2]
[353783531,1740046243160,-500.0,0.00010958,2]
[353783533,1740046243169,-500.0,0.00010958,2]
[353783535,1740046243178,-500.0,0.00010958,2]
[353783537,1740046243188,-504.34725025,0.00010958,2]
[353783539,1740046243197,-500.0,0.00010958,2]
[353783541,1740046243207,-455.47407446,0.00010958,2]
[353783543,1740046243217,-501.09814138,0.00010958,2]
[353783545,1740046243226,-500.26000545,0.00010958,2]
[353783548,1740046243236,-1000.0,0.00010999,2]
[353783550,1740046243245,-1300.77930753,0.00011,2]
[353783552,1740046243255,-550.0,0.00011,2]
[353783554,1740046243265,-501.83145675,0.00011027,2]
[353783556,1740046243275,-579.06,0.0001103,2]
[353783558,1740046243284,-277.14294628,0.00011038,2]
[353783560,1740046243294,-500.0,0.0001104,2]
[353783562,1740046243303,-1025.74,0.0001104,2]
[353783564,1740046243313,-506.05274632,0.0001104,2]
[353783566,1740046243322,-300.0,0.0001104,2]
[353783568,1740046243332,-500.0,0.00011041,2]
[353783570,1740046243342,-172.82601506,0.00011041,2]
[353783572,1740046243351,-504.78481108,0.00011041,2]
[353783573,1740046243360,-414.18,0.00011041,2]
[353783576,1740046243370,-502.82879162,0.00011041,2]
[353783578,1740046243380,-503.47755576,0.00011041,2]
[353783580,1740046243389,-155.64607782,0.00011041,2]
[353783582,1740046243399,-372.1915511,0.00011041,2]
[353783584,1740046243410,-546.98281744,0.00011041,2]
[353783586,1740046243420,-500.0,0.00011041,2]
[353783588,1740046243430,-501.66757928,0.00011041,2]
[353783590,1740046243439,-504.04475986,0.00011041,2]
[353783592,1740046243448,-506.54291942,0.00011041,2]
[353783594,1740046243458,-505.25809045,0.00011041,2]
[353783596,1740046243471,-504.62912805,0.00011041,2]
[353783598,1740046243482,-503.39394993,0.00011041,2]
[353783600,1740046243491,-503.53063886,0.00011041,2]
[353783602,1740046243501,-509.50693924,0.00011041,2]
[353783604,1740046243513,-500.0,0.00011041,2]
[353783606,1740046243522,-500.0,0.00011041,2]
[353783608,1740046243532,-176.91048043,0.00011041,2]
[353783610,1740046243544,-504.25027401,0.00011041,2]
[353783612,1740046243553,-507.77967209,0.00011041,2]
[353783614,1740046243563,-505.47678544,0.00011041,2]
[353783616,1740046243573,-504.55567928,0.00011041,2]
[353783618,1740046243582,-508.70620553,0.00011041,2]
[353783620,1740046243592,-505.40262007,0.00011041,2]
[353783622,1740046243601,-502.52002676,0.00011041,2]
[353783624,1740046243611,-507.28546161,0.00011041,2]
[353783626,1740046243620,-503.84771779,0.00011041,2]
[353783628,1740046243630,-500.0,0.00011041,2]
[353783630,1740046243640,-503.6241923,0.00011041,2]
[353783632,1740046243649,-500.21355,0.00011041,2]
[353783634,1740046243659,-150.52833529,0.00011041,2]
[353783636,1740046243669,-505.01676249,0.00011041,2]
[353783638,1740046243678,-510.97801848,0.00011041,2]
[353783640,1740046243688,-500.0,0.00011041,2]
[353783642,1740046243697,-505.45945792,0.00011041,2]
[353783644,1740046243707,-176.31308318,0.00011041,2]
[353783646,1740046243717,-500.0,0.00011041,2]
[353783648,1740046243726,-505.13347405,0.00011041,2]
[353783650,1740046243736,-500.0,0.00011041,2]
[353783652,1740046243745,-510.4646807,0.00011041,2]
[353783654,1740046243755,-353.18520617,0.00011041,2]
[353783656,1740046243764,-500.0,0.00011041,2]
[353783658,1740046243773,-503.25233369,0.00011041,2]
[353783660,1740046243783,-430.93223583,0.00011041,2]
[353783662,1740046243792,-500.0,0.00011041,2]
[353783664,1740046243802,-502.15221342,0.00011041,2]
[353783666,1740046243811,-500.0,0.00011041,2]
[353783668,1740046243821,-500.0,0.00011041,2]
[353783670,1740046243830,-500.0,0.00011041,2]
[353783672,1740046243839,-500.0,0.00011041,2]
[353783675,1740046243849,-514.07576499,0.00011041,2]
[353783677,1740046243858,-503.03350501,0.00011041,2]
[353783679,1740046243867,-506.30010186,0.00011041,2]
[353783681,1740046243877,-500.0,0.00011041,2]
[353783683,1740046243886,-505.79422418,0.00011041,2]
[353783685,1740046243896,-502.83279749,0.00011041,2]
[353783687,1740046243905,-500.0,0.00011041,2]
[353783689,1740046243914,-500.0,0.00011041,2]